lending/lending_fUSD_20240410
["ID","MTS","AMOUNT","RATE_DAILY","PERIOD"]
[322065906,1712739047466,-500.0,0.00020477,2]
[322065907,1712739047475,-774.63,0.00020477,2]
[322065908,1712739047485,-1362.67,0.00020477,2]
[322065909,1712739047494,-500.0,0.00020477,2]
[322065910,1712739047503,-500.0,0.00020477,2]
[322065911,1712739047512,-3704.96,0.00020477,2]
[322065912,1712739047522,-500.0,0.00020477,2]
[322065913,1712739047531,-500.0,0.00020477,2]
[322065914,1712739047540,-500.0,0.00020477,2]
[322065915,1712739047549,-500.0,0.00020477,2]
[322065916,1712739047559,-500.0,0.00020477,2]
[322065917,1712739047569,-500.0,0.00020477,2]
[322065918,1712739047578,-500.0,0.00020477,2]
[322065919,1712739047587,-513.06,0.00020477,2]
[322065920,1712739047596,-1043.45635974,0.00020478,2]
[322065921,1712739047605,-155.65272791,0.00020478,2]
[322065922,1712739047614,-872.9550944,0.00020478,2]
[322065923,1712739047623,-500.0,0.00020478,2]
[322065924,1712739047632,-500.0,0.00020478,2]
[322065925,1712739047641,-500.0,0.00020478,2]
[322065926,1712739047651,-500.0,0.00020478,2]
[322065927,1712739047660,-500.0,0.00020478,2]
[322065928,1712739047670,-500.0,0.00020478,2]
[322065929,1712739047679,-500.0,0.00020478,2]
[322065930,1712739047688,-500.0,0.00020478,2]
[322065931,1712739047698,-500.0,0.00020478,2]
[322065932,1712739047707,-500.0,0.00020478,2]
[322065933,1712739047716,-151.37369953,0.00020478,2]
[322065934,1712739047726,-500.0,0.00020478,2]
[322065935,1712739047735,-500.0,0.00020478,2]
[322065936,1712739047744,-500.0,0.00020478,2]
[322065937,1712739047755,-500.0,0.00020478,2]
[322065938,1712739047764,-500.0,0.00020478,2]
[322065939,1712739047774,-500.0,0.00020478,2]
[322065940,1712739047784,-500.0,0.00020478,2]
[322065941,1712739047793,-570.79,0.00020478,2]
[322065942,1712739047802,-500.0,0.00020478,2]
[322065943,1712739047812,-500.0,0.00020478,2]
[322065944,1712739047824,-500.0,0.00020478,2]
[322065945,1712739047833,-500.0,0.00020478,2]
[322065946,1712739047842,-500.0,0.00020478,2]
[322065947,1712739047852,-500.0,0.00020478,2]
[322065948,1712739047861,-500.0,0.00020478,2]
[322065949,1712739047870,-613.93,0.00020478,2]
[322065950,1712739047880,-500.0,0.00020478,2]
[322065951,1712739047889,-500.0,0.00020478,2]
[322065952,1712739047898,-500.0,0.00020478,2]
[322065953,1712739047908,-500.0,0.00020478,2]
[322065954,1712739047917,-500.0,0.00020478,2]
[322065955,1712739047926,-578.03,0.00020478,2]
[322065956,1712739047936,-500.0,0.00020478,2]
[322065957,1712739047945,-500.0,0.00020478,2]
[322065958,1712739047954,-577.46812739,0.00020478,2]
[322065959,1712739047964,-343.26471473,0.00020478,2]
[322065960,1712739047973,-934.61,0.00020478,2]
[322065961,1712739047983,-500.0,0.00020478,2]
[322065962,1712739047992,-500.0,0.00020478,2]
[322065963,1712739048001,-150.0,0.00020478,2]
[322065964,1712739048010,-500.0,0.00020478,2]
[322065965,1712739048020,-500.0,0.00020478,2]
[322065966,1712739048029,-506.18759451,0.00020478,2]
[322065967,1712739048038,-500.0,0.00020478,2]
[322065968,1712739048047,-397.13,0.00020478,2]
[322065969,1712739048059,-616.26,0.00020478,2]
[322065970,1712739048068,-887.99,0.00020478,2]
[322065971,1712739048077,-548.96,0.00020478,2]
[322065972,1712739048087,-253.25685155,0.00020478,2]
[322065973,1712739048096,-500.0,0.00020478,2]
[322065974,1712739048105,-506.51055647,0.00020478,2]
[322065975,1712739048114,-898.59,0.00020478,2]
[322065976,1712739048124,-500.0,0.00020478,2]
[322065977,1712739048133,-500.0,0.00020478,2]
[322065978,1712739048142,-500.0,0.00020478,2]
[322065979,1712739048151,-500.0,0.00020478,2]
[322065980,1712739048161,-711.11,0.00020478,2]
[322065981,1712739048171,-500.0,0.00020478,2]
[322065982,1712739048180,-500.0,0.00020478,2]
[322065983,1712739048189,-683.32,0.00020478,2]
[322065984,1712739048198,-500.0,0.00020478,2]
[322065985,1712739048207,-519.48,0.00020478,2]
[322065986,1712739048216,-500.0,0.00020478,2]
[322065987,1712739048225,-500.0,0.00020478,2]
[322065988,1712739048235,-626.89,0.00020478,2]
[322065989,1712739048244,-964.25,0.00020478,2]
[322065990,1712739048253,-500.0,0.00020478,2]
[322065991,1712739048262,-500.0,0.00020478,2]
[322065992,1712739048272,-500.0,0.00020478,2]
[322065993,1712739048281,-500.0,0.00020478,2]
[322065994,1712739048290,-500.0,0.00020478,2]
[322065995,1712739048299,-500.0,0.00020478,2]
[322065996,1712739048309,-500.0,0.00020478,2]
[322065997,1712739048319,-671.33,0.00020478,2]
[322065998,1712739048329,-508.86,0.00020478,2]
[322065999,1712739048338,-500.0,0.00020478,2]
[322066000,1712739048347,-500.0,0.00020478,2]
[322066001,1712739048356,-370.1179457,0.00020478,2]
[322066002,1712739048366,-547.4,0.00020478,2]
[322066003,1712739048375,-500.0,0.00020478,2]
[322066004,1712739048384,-500.0,0.00020478,2]
[322066005,1712739048394,-529.97,0.00020478,2]
[322066006,1712739048403,-500.0,0.00020478,2]
[322066007,1712739048413,-500.0,0.00020478,2]
[322066008,1712739048421,-565.15,0.00020478,2]
[322066009,1712739048430,-500.0,0.00020478,2]
[322066010,1712739048440,-1021.16,0.00020478,2]
[322066011,1712739048450,-500.0,0.00020478,2]
[322066012,1712739048459,-887.08,0.00020478,2]
[322066013,1712739048468,-500.0,0.00020478,2]
[322066014,1712739048477,-500.0,0.00020478,2]
[322066015,1712739048486,-500.0,0.00020478,2]
[322066016,1712739048496,-500.0,0.00020478,2]
[322066017,1712739048505,-513.89,0.00020478,2]
[322066018,1712739048514,-677.27,0.00020478,2]
[322066019,1712739048524,-885.74,0.00020478,2]
[322066020,1712739048533,-1445.14,0.00020478,2]
[322066021,1712739048542,-500.0,0.00020478,2]
[322066022,1712739048551,-500.0,0.00020478,2]
[322066023,1712739048562,-208.18935424,0.00020478,2]
[322066024,1712739048571,-753.45,0.00020478,2]
[322066025,1712739048580,-500.0,0.00020478,2]
[322066026,1712739048590,-500.0,0.00020478,2]
[322066027,1712739048599,-500.0,0.00020478,2]
[322066028,1712739048609,-500.0,0.00020478,2]
[322066029,1712739048618,-4935.81,0.00020478,2]
[322066030,1712739048627,-500.0,0.00020478,2]
[322066031,1712739048636,-500.0,0.00020478,2]
[322066032,1712739048646,-728.63,0.00020478,2]
[322066033,1712739048655,-500.0,0.00020478,2]
[322066034,1712739048664,-545.78,0.00020478,2]
[322066035,1712739048674,-500.0,0.00020478,2]
[322066036,1712739048683,-500.0,0.00020478,2]
[322066037,1712739048692,-500.0,0.00020478,2]
[322066038,1712739048701,-500.0,0.00020478,2]
[322066039,1712739048711,-500.0,0.00020478,2]
[322066040,1712739048721,-500.0,0.00020478,2]
[322066041,1712739048730,-500.0,0.00020478,2]
[322066042,1712739048740,-500.0,0.00020478,2]
[322066043,1712739048750,-934.77,0.00020478,2]
[322066044,1712739048760,-500.0,0.00020478,2]
[322066045,1712739048770,-500.0,0.00020478,2]
[322066046,1712739048781,-500.0,0.00020478,2]
[322066047,1712739048791,-537.35,0.00020478,2]
[322066048,1712739048803,-515.08,0.00020478,2]
[322066049,1712739048814,-500.0,0.00020478,2]
[322066050,1712739048826,-500.0,0.00020478,2]
[322066051,1712739048838,-500.0,0.00020478,2]
[322066052,1712739048890,-500.0,0.00020478,2]
[322066053,1712739048900,-631.39,0.00020478,2]
[322066054,1712739048911,-2573.74,0.00020478,2]
[322066055,1712739048920,-500.0,0.00020478,2]
[322066056,1712739048929,-632.78,0.00020478,2]
[322066057,1712739048938,-500.0,0.00020478,2]
[322066058,1712739048947,-500.0,0.00020478,2]
[322066059,1712739048956,-857.64,0.00020478,2]
[322066060,1712739048965,-500.0,0.00020478,2]
[322066061,1712739048974,-500.0,0.00020478,2]
[322066062,1712739048983,-500.0,0.00020478,2]
[322066063,1712739048993,-500.0,0.00020478,2]
[322066064,1712739049002,-526.43,0.00020478,2]
[322066065,1712739049011,-500.0,0.00020478,2]
[322066066,1712739049020,-710.81,0.00020478,2]
[322066067,1712739049029,-500.0,0.00020478,2]
[322066068,1712739049038,-753.09,0.00020478,2]
[322066069,1712739049047,-500.0,0.00020478,2]
[322066070,1712739049056,-500.0,0.00020478,2]
[322066071,1712739049065,-256.92691488,0.00020478,2]
[322066072,1712739049074,-500.0,0.00020478,2]
[322066073,1712739049083,-500.0,0.00020478,2]
[322066074,1712739049092,-1404.33,0.00020478,2]
[322066075,1712739049101,-450.36253168,0.00020478,2]
[322066076,1712739049111,-500.0,0.00020478,2]
[322066077,1712739049120,-500.0,0.00020478,2]
[322066078,1712739049129,-585.94250343,0.00020478,2]
[322066079,1712739049138,-500.0,0.00020478,2]
[322066080,1712739049148,-500.0,0.00020478,2]
[322066081,1712739049157,-627.71,0.00020478,2]
[322066082,1712739049166,-500.0,0.00020478,2]
[322066083,1712739049175,-1405.94,0.00020478,2]
[322066084,1712739049184,-530.64,0.00020478,2]
[322066085,1712739049194,-500.0,0.00020478,2]
[322066086,1712739049203,-500.0,0.00020479,2]
[322066087,1712739049212,-205.556456,0.00020483,2]
[322066088,1712739049222,-150.0,0.000205,2]
[322066089,1712739049231,-1413.155,0.00020517,2]
[322066090,1712739049240,-2304.204,0.00020517,2]
[322066091,1712739049250,-974.818,0.00020517,2]
[322066092,1712739049259,-460.622,0.00020517,2]
[322066093,1712739049269,-155.627,0.00020517,2]
[322066094,1712739049278,-547.659,0.00020517,2]
[322066095,1712739049288,-1276.646,0.00020517,2]
[322066096,1712739049297,-895.435,0.00020517,2]
[322066097,1712739049307,-214.0,0.00020517,2]
[322066098,1712739049316,-150.0,0.00020517,2]
[322066099,1712739049326,-202.59043851,0.00020536,2]
[322066100,1712739049335,-8287.17913186,0.00020546,2]
[322066101,1712739049345,-798.0,0.00020547,2]
[322066102,1712739049354,-500.0,0.00020553,2]
[322066103,1712739049363,-802.49,0.00020554,2]
[322066104,1712739049373,-1567.52,0.00020554,2]
[322066105,1712739049382,-500.0,0.00020554,2]
[322066106,1712739049392,-500.0,0.00020554,2]
[322066107,1712739049402,-500.0,0.00020554,2]
[322066108,1712739049411,-500.0,0.00020554,2]
[322066109,1712739049420,-500.0,0.00020554,2]
[322066110,1712739049430,-500.0,0.00020554,2]
[322066111,1712739049440,-500.0,0.00020554,2]
[322066112,1712739049450,-500.0,0.00020554,2]
[322066113,1712739049459,-500.0,0.00020554,2]
[322066114,1712739049469,-500.0,0.00020554,2]
[322066115,1712739049479,-500.0,0.00020554,2]
[322066116,1712739049488,-1177.39,0.00020554,2]
[322066117,1712739049498,-996.62,0.00020554,2]
[322066118,1712739049507,-6692.18,0.00020554,2]
[322066119,1712739049517,-1135.82,0.00020554,2]
[322066120,1712739049528,-500.0,0.00020554,2]
[322066121,1712739049538,-973.83,0.00020554,2]
[322066122,1712739049547,-10415.18,0.00020554,2]
[322066123,1712739049558,-500.0,0.00020554,2]
[322066124,1712739049567,-500.0,0.00020554,2]
[322066125,1712739049577,-500.0,0.00020554,2]
[322066126,1712739049586,-8287.17913186,0.00020634,2]
[322066127,1712739049595,-187.35352783,0.00020635,2]
[322066128,1712739049604,-217.58222446,0.00020651,2]
[322066129,1712739049614,-210.0,0.00020673,2]
[322066130,1712739049623,-8287.17913186,0.00020723,2]
[322066131,1712739049633,-3224.915903,0.00020747,2]
[322066132,1712739049643,-500.0,0.00020751,2]
[322066133,1712739049653,-500.0,0.00020751,2]
[322066134,1712739049663,-500.0,0.00020751,2]
[322066135,1712739049672,-500.0,0.00020751,2]
[322066136,1712739049681,-500.0,0.00020751,2]
[322066137,1712739049691,-500.0,0.00020751,2]
[322066138,1712739049701,-500.0,0.00020751,2]
[322066139,1712739049713,-500.0,0.00020751,2]
[322066140,1712739049734,-500.0,0.00020751,2]
[322066141,1712739049746,-500.0,0.00020751,2]
[322066142,1712739049756,-500.0,0.00020751,2]
[322066143,1712739049765,-946.69,0.00020751,2]
[322066144,1712739049775,-1419.29,0.00020751,2]
[322066145,1712739049785,-324.3114054,0.00020751,2]
[322066146,1712739049795,-500.0,0.00020751,2]
[322066147,1712739049804,-500.0,0.00020751,2]
[322066148,1712739049814,-500.0,0.00020751,2]
[322066149,1712739049824,-625.16,0.00020751,2]
[322066150,1712739049833,-500.0,0.00020751,2]
[322066151,1712739049843,-1482.35,0.00020751,2]
[322066152,1712739049852,-538.07840635,0.00020751,2]
[322066153,1712739049861,-500.0,0.00020751,2]
[322066154,1712739049871,-500.0,0.00020751,2]
[322066155,1712739049881,-861.14,0.00020751,2]
[322066156,1712739049890,-500.0,0.00020751,2]
[322066157,1712739049899,-500.0,0.00020751,2]
[322066158,1712739049909,-528.57,0.00020751,2]
[322066159,1712739049918,-2120.71,0.00020751,2]
[322066160,1712739049928,-500.0,0.00020751,2]
[322066161,1712739049937,-552.2,0.00020751,2]
[322066162,1712739049946,-500.0,0.00020751,2]
[322066163,1712739049956,-2408.96,0.00020751,2]
[322066164,1712739049965,-1276.57,0.00020751,2]
[322066165,1712739049974,-1217.14,0.00020751,2]
[322066166,1712739049983,-2123.86,0.00020751,2]
[322066167,1712739049992,-511.31,0.00020751,2]
[322066168,1712739050002,-572.02,0.00020751,2]
[322066169,1712739050011,-500.0,0.00020751,2]
[322066170,1712739050020,-742.1,0.00020751,2]
[322066171,1712739050030,-1137.02,0.00020751,2]
[322066172,1712739050040,-500.0,0.00020751,2]
[322066173,1712739050050,-1754.38,0.00020751,2]
[322066174,1712739050061,-500.0,0.00020751,2]
[322066175,1712739050071,-984.81,0.00020751,2]
[322066176,1712739050081,-500.0,0.00020751,2]
[322066177,1712739050090,-500.0,0.00020751,2]
[322066178,1712739050100,-612.58,0.00020751,2]
[322066179,1712739050109,-619.53,0.00020751,2]
[322066180,1712739050118,-500.0,0.00020751,2]
[322066181,1712739050128,-500.0,0.00020751,2]
[322066182,1712739050137,-530.44,0.00020751,2]
[322066183,1712739050147,-1083.32,0.00020751,2]
[322066184,1712739050156,-500.0,0.00020751,2]
[322066185,1712739050165,-500.0,0.00020751,2]
[322066186,1712739050174,-765.23,0.00020751,2]
[322066187,1712739050184,-500.0,0.00020751,2]
[322066188,1712739050194,-1986.39,0.00020751,2]
[322066189,1712739050203,-521.75,0.00020751,2]
[322066190,1712739050212,-500.0,0.00020751,2]
[322066191,1712739050221,-500.0,0.00020751,2]
[322066192,1712739050230,-500.0,0.00020751,2]
[322066193,1712739050240,-500.0,0.00020751,2]
[322066194,1712739050249,-500.0,0.00020751,2]
[322066195,1712739050259,-500.0,0.00020751,2]
[322066196,1712739050269,-774.63,0.00020751,2]
[322066197,1712739050278,-1362.67,0.00020751,2]
[322066198,1712739050287,-500.0,0.00020751,2]
[322066199,1712739050297,-564.81818859,0.00020751,2]
[322066200,1712739050306,-3704.96,0.00020751,2]
[322066201,1712739050315,-500.0,0.00020751,2]
[322066202,1712739050325,-500.0,0.00020751,2]
[322066203,1712739050334,-500.0,0.00020751,2]
[322066204,1712739050346,-513.00224431,0.00020751,2]
[322066205,1712739050356,-500.0,0.00020751,2]
[322066206,1712739050366,-500.0,0.00020751,2]
[322066207,1712739050375,-500.0,0.00020751,2]
[322066208,1712739050385,-513.06,0.00020751,2]
[322066209,1712739050394,-500.0,0.00020752,2]
[322066210,1712739050404,-525.80070407,0.00020752,2]
[322066211,1712739050414,-190.2925576,0.00020752,2]
[322066212,1712739050424,-611.78893873,0.00020752,2]
[322066213,1712739050433,-500.0,0.00020752,2]
[322066214,1712739050443,-178.06575483,0.00020752,2]
[322066215,1712739050453,-500.0,0.00020752,2]
[322066216,1712739050463,-500.0,0.00020752,2]
[322066217,1712739050473,-500.0,0.00020752,2]
[322066218,1712739050483,-376.97,0.00020752,2]
[322066219,1712739050493,-296.11704188,0.00020752,2]
[322066220,1712739050502,-170.32345175,0.00020752,2]
[322066221,1712739050512,-500.0,0.00020752,2]
[322066222,1712739050522,-500.0,0.00020752,2]
[322066223,1712739050532,-500.0,0.00020752,2]
[322066224,1712739050541,-500.0,0.00020752,2]
[322066225,1712739050551,-500.0,0.00020752,2]
[322066226,1712739050561,-570.79,0.00020752,2]
[322066227,1712739050571,-500.0,0.00020752,2]
[322066228,1712739050580,-535.52460128,0.00020752,2]
[322066229,1712739050589,-500.0,0.00020752,2]
[322066230,1712739050599,-500.0,0.00020752,2]
[322066231,1712739050608,-500.0,0.00020752,2]
[322066232,1712739050617,-500.0,0.00020752,2]
[322066233,1712739050627,-500.0,0.00020752,2]
[322066234,1712739050636,-613.93,0.00020752,2]
[322066235,1712739050646,-500.0,0.00020752,2]
[322066236,1712739050655,-500.0,0.00020752,2]
[322066237,1712739050664,-500.0,0.00020752,2]
[322066238,1712739050674,-500.0,0.00020752,2]
[322066239,1712739050683,-500.0,0.00020752,2]
[322066240,1712739050693,-578.03,0.00020752,2]
[322066241,1712739050702,-500.0,0.00020752,2]
[322066242,1712739050711,-500.0,0.00020752,2]
[322066243,1712739050721,-934.61,0.00020752,2]
[322066244,1712739050732,-500.0,0.00020752,2]
[322066245,1712739050741,-500.0,0.00020752,2]
[322066246,1712739050754,-150.0,0.00020752,2]
[322066247,1712739050764,-500.0,0.00020752,2]
[322066248,1712739050773,-500.0,0.00020752,2]
[322066249,1712739050782,-500.0,0.00020752,2]
[322066250,1712739050791,-616.26,0.00020752,2]
[322066251,1712739050802,-887.99,0.00020752,2]
[322066252,1712739050812,-548.96,0.00020752,2]
[322066253,1712739050824,-500.0,0.00020752,2]
[322066254,1712739050834,-898.59,0.00020752,2]
[322066255,1712739050843,-500.0,0.00020752,2]
[322066256,1712739050852,-500.0,0.00020752,2]
[322066257,1712739050862,-500.0,0.00020752,2]
[322066258,1712739050870,-500.0,0.00020752,2]
[322066259,1712739050879,-711.11,0.00020752,2]
[322066260,1712739050890,-189.35412937,0.00020752,2]
[322066261,1712739050899,-500.0,0.00020752,2]
[322066262,1712739050909,-683.32,0.00020752,2]
[322066263,1712739050918,-500.0,0.00020752,2]
[322066264,1712739050927,-519.48,0.00020752,2]
[322066265,1712739050936,-500.0,0.00020752,2]
[322066266,1712739050946,-500.0,0.00020752,2]
[322066267,1712739050955,-626.89,0.00020752,2]
[322066268,1712739050964,-964.25,0.00020752,2]
[322066269,1712739050973,-500.0,0.00020752,2]
[322066270,1712739050982,-500.0,0.00020752,2]
[322066271,1712739050992,-500.0,0.00020752,2]
[322066272,1712739051001,-500.0,0.00020752,2]
[322066273,1712739051010,-500.0,0.00020752,2]
[322066274,1712739051019,-500.0,0.00020752,2]
[322066275,1712739051028,-500.0,0.00020752,2]
[322066276,1712739051037,-671.33,0.00020752,2]
[322066277,1712739051047,-508.86,0.00020752,2]
[322066278,1712739051056,-500.0,0.00020752,2]
[322066279,1712739051066,-175.52755882,0.00020752,2]
[322066280,1712739051076,-547.4,0.00020752,2]
[322066281,1712739051085,-500.0,0.00020752,2]
[322066282,1712739051094,-500.0,0.00020752,2]
[322066283,1712739051104,-529.97,0.00020752,2]
[322066284,1712739051117,-500.0,0.00020752,2]
[322066285,1712739051126,-500.0,0.00020752,2]
[322066286,1712739051135,-565.15,0.00020752,2]
[322066287,1712739051144,-600.90969125,0.00020752,2]
[322066288,1712739051153,-1021.16,0.00020752,2]
[322066289,1712739051163,-500.0,0.00020752,2]
[322066290,1712739051172,-887.08,0.00020752,2]
[322066291,1712739051181,-500.0,0.00020752,2]
[322066292,1712739051190,-500.0,0.00020752,2]
[322066293,1712739051199,-500.0,0.00020752,2]
[322066294,1712739051209,-500.0,0.00020752,2]
[322066295,1712739051217,-513.89,0.00020752,2]
[322066296,1712739051227,-677.27,0.00020752,2]
[322066297,1712739051236,-885.74,0.00020752,2]
[322066298,1712739051245,-1445.14,0.00020752,2]
[322066299,1712739051254,-500.0,0.00020752,2]
[322066300,1712739051263,-500.0,0.00020752,2]
[322066301,1712739051273,-753.45,0.00020752,2]
[322066302,1712739051282,-500.0,0.00020752,2]
[322066303,1712739051291,-500.0,0.00020752,2]
[322066304,1712739051300,-500.0,0.00020752,2]
[322066305,1712739051310,-500.0,0.00020752,2]
[322066306,1712739051320,-4935.81,0.00020752,2]
[322066307,1712739051329,-500.0,0.00020752,2]
[322066308,1712739051339,-183.37310435,0.00020752,2]
[322066309,1712739051348,-728.63,0.00020752,2]
[322066310,1712739051358,-500.0,0.00020752,2]
[322066311,1712739051367,-545.78,0.00020752,2]
[322066312,1712739051376,-500.0,0.00020752,2]
[322066313,1712739051385,-401.16513337,0.00020752,2]
[322066314,1712739051394,-500.0,0.00020752,2]
[322066315,1712739051405,-500.0,0.00020752,2]
[322066316,1712739051416,-487.89365558,0.00020752,2]
[322066317,1712739051426,-500.0,0.00020752,2]
[322066318,1712739051436,-500.0,0.00020752,2]
[322066319,1712739051446,-500.0,0.00020752,2]
[322066320,1712739051455,-934.77,0.00020752,2]
[322066321,1712739051465,-388.47613172,0.00020752,2]
[322066322,1712739051475,-500.0,0.00020752,2]
[322066323,1712739051485,-500.0,0.00020752,2]
[322066324,1712739051494,-537.35,0.00020752,2]
[322066325,1712739051503,-515.08,0.00020752,2]
[322066326,1712739051513,-383.9315534,0.00020752,2]
[322066327,1712739051523,-500.0,0.00020752,2]
[322066328,1712739051532,-500.0,0.00020752,2]
[322066329,1712739051542,-369.12493163,0.00020752,2]
[322066330,1712739051551,-631.39,0.00020752,2]
[322066331,1712739051562,-2573.74,0.00020752,2]
[322066332,1712739051572,-500.0,0.00020752,2]
[322066333,1712739051581,-632.78,0.00020752,2]
[322066334,1712739051590,-500.0,0.00020752,2]
[322066335,1712739051600,-500.0,0.00020752,2]
[322066336,1712739051609,-857.64,0.00020752,2]
[322066337,1712739051618,-500.0,0.00020752,2]
[322066338,1712739051628,-500.0,0.00020752,2]
[322066339,1712739051638,-500.0,0.00020752,2]
[322066340,1712739051647,-500.0,0.00020752,2]
[322066341,1712739051657,-526.43,0.00020752,2]
[322066342,1712739051666,-500.0,0.00020752,2]
[322066343,1712739051676,-710.81,0.00020752,2]
[322066344,1712739051685,-500.0,0.00020752,2]
[322066345,1712739051695,-753.09,0.00020752,2]
[322066346,1712739051705,-500.0,0.00020752,2]
[322066347,1712739051714,-500.0,0.00020752,2]
[322066348,1712739051724,-500.0,0.00020752,2]
[322066349,1712739051736,-500.0,0.00020752,2]
[322066350,1712739051747,-1404.33,0.00020752,2]
[322066351,1712739051756,-500.0,0.00020752,2]
[322066352,1712739051766,-500.0,0.00020752,2]
[322066353,1712739051775,-500.0,0.00020752,2]
[322066354,1712739051786,-500.0,0.00020752,2]
[322066355,1712739051795,-627.71,0.00020752,2]
[322066356,1712739051805,-500.0,0.00020752,2]
[322066357,1712739051815,-1405.94,0.00020752,2]
[322066358,1712739051827,-530.64,0.00020752,2]
[322066359,1712739051836,-500.0,0.00020752,2]
[322066360,1712739051845,-338.07196015,0.00020753,2]
[322066361,1712739051855,-8287.17913186,0.00020811,2]
[322066362,1712739051865,-802.49,0.00020828,2]
[322066363,1712739051874,-1567.52,0.00020828,2]
[322066364,1712739051883,-500.0,0.00020828,2]
[322066365,1712739051894,-500.0,0.00020828,2]
[322066366,1712739051905,-500.0,0.00020828,2]
[322066367,1712739051917,-500.0,0.00020828,2]
[322066368,1712739051926,-500.0,0.00020828,2]
[322066369,1712739051936,-465.78350723,0.00020828,2]
[322066370,1712739051946,-500.0,0.00020828,2]
[322066371,1712739051956,-500.0,0.00020828,2]
[322066372,1712739051965,-500.0,0.00020828,2]
[322066373,1712739051975,-500.0,0.00020828,2]
[322066374,1712739051984,-500.0,0.00020828,2]
[322066375,1712739051994,-1177.39,0.00020828,2]
[322066376,1712739052004,-996.62,0.00020828,2]
[322066377,1712739052013,-6692.18,0.00020828,2]
[322066378,1712739052023,-1135.82,0.00020828,2]
[322066379,1712739052034,-500.0,0.00020828,2]
[322066380,1712739052043,-973.83,0.00020828,2]
[322066381,1712739052053,-10415.18,0.00020828,2]
[322066382,1712739052063,-500.0,0.00020828,2]
[322066383,1712739052072,-500.0,0.00020828,2]
[322066384,1712739052082,-500.0,0.00020828,2]
[322066385,1712739052091,-500.0,0.00020899,2]
[322066386,1712739052100,-23634.0,0.000209,2]
[322066387,1712739052109,-7215.2020256,0.000209,2]
[322066388,1712739052119,-44178.4799,0.000209,2]
[322066389,1712739052129,-187.35352783,0.000209,2]
[322066390,1712739052140,-8287.17913186,0.000209,2]
[322066391,1712739052150,-261.19361918,0.000209,2]
[322066392,1712739052161,-1255.40339473,0.000209,2]
[322066393,1712739052171,-652.83262,0.0002092,2]
[322066394,1712739052181,-874.05833538,0.00020936,2]
[322066395,1712739052192,-2625.26513522,0.00020936,2]
[322066396,1712739052203,-351.70148618,0.00020936,2]
[322066397,1712739052213,-155.74872645,0.00020936,2]
[322066398,1712739052222,-202.59043851,0.0002099,2]
[322066399,1712739052232,-4686.09039393,0.00020997,2]
[322066400,1712739052241,-411.33971946,0.00020998,2]
[322066401,1712739052251,-1370.31174349,0.00020998,2]
[322066402,1712739052262,-2050.73928786,0.00020998,2]
[322066403,1712739052272,-178.48280055,0.00020999,2]
[322066404,1712739052282,-349.83685033,0.00020999,2]
[322066405,1712739052292,-4610.92625693,0.00020999,2]